bitfinex-derivatives/quotes_ETHF0:USTF0_20250103
["timestamp","ask_amount","ask_price","bid_price","bid_amount"]
[1735870356719,0.28835,3471.6,3471.5,4.78398123]
[1735870357215,40.8,3471.8,3471.5,4.78398123]
[1735870357520,0.28834,3471.7,3471.6,0.28835]
[1735870358116,40.8,3471.8,3471.5,4.49563123]
[1735870358315,0.28834,3471.7,3471.6,4.78398123]
[1735870359422,0.28834,3471.7,3471.6,13.13535461]
[1735870360522,0.28834,3471.7,3471.6,15.68544246]
[1735870361213,3.49614,3471.7,3471.6,15.04971206]
[1735870361422,3.49614,3471.7,3471.6,18.30008225]
[1735870362326,3.49614,3471.7,3471.6,6.09717863]
[1735870362821,4.49323146,3471.7,3471.6,6.09717863]
[1735870363326,4.49323146,3471.7,3471.6,12.85020459]
[1735870364418,4.49323146,3471.7,3471.6,6.09717863]
[1735870365728,4.20489146,3471.7,3471.4,4.49934687]
[1735870365926,1.28545146,3471.5,3471.4,4.49934687]
[1735870367129,0.28837,3471.4,3471.3,4.49934687]
[1735870370131,0.28837,3471.3,3471.2,4.49934687]
[1735870370320,1.28546146,3471.3,3471.2,4.49934687]
[1735870370828,0.28837,3471.3,3471.2,4.49934687]
[1735870375432,0.28839,3471.1,3471.0,4.49934687]
[1735870385339,0.28839,3471.1,3470.9,4.78775687]
[1735870385549,0.2884,3471.0,3470.9,4.78775687]
[1735870386939,4.20489146,3471.2,3470.9,4.78775687]
[1735870387138,0.2884,3471.1,3470.9,4.78775687]
[1735870387742,4.20489146,3471.2,3470.9,4.78775687]
[1735870387942,0.2884,3471.0,3470.9,4.78775687]
[1735870388841,0.2884,3471.0,3470.9,10.87918328]
[1735870389042,0.2884,3471.0,3470.9,10.59077328]
[1735870389342,0.2884,3471.0,3470.9,10.87918328]
[1735870390038,0.2884,3471.0,3470.9,13.13286237]
[1735870391848,0.2884,3471.0,3470.9,6.37983641]
[1735870393449,0.28838,3471.2,3471.0,0.28839]
[1735870393751,0.28839,3471.1,3471.0,0.28839]
[1735870393945,0.2884,3471.0,3470.9,6.37982641]
[1735870394142,0.2884,3471.1,3470.9,0.2884]
[1735870394343,0.2884,3471.1,3471.0,0.2884]
[1735870395146,0.2884,3471.1,3471.0,6.38053276]
[1735870395343,3.2078,3471.3,3471.0,6.38053276]
[1735870395850,0.28838,3471.2,3471.0,6.38053276]
[1735870396448,0.28838,3471.2,3471.1,4.49441613]
[1735870397641,1.28547146,3471.2,3471.1,4.49441613]
[1735870398247,42.08547146,3471.2,3471.1,4.49441613]
[1735870398553,41.79709146,3471.2,3471.0,4.49441613]
[1735870398740,0.28839,3471.1,3471.0,4.49441613]
[1735870399444,41.08839,3471.1,3471.0,4.49441613]
[1735870399944,41.08839,3471.1,3471.0,6.09517791]
[1735870400556,41.08839,3471.1,3471.0,6.44276792]
[1735870400749,41.08839,3471.1,3471.0,6.09517791]
[1735870401054,0.28839,3471.2,3471.0,6.73116754]
[1735870401250,3.2078,3471.3,3471.0,6.38356791]
[1735870401563,41.08839,3471.2,3471.0,6.38356791]
[1735870401945,40.8,3471.2,3471.0,6.09517791]
[1735870402249,41.08839,3471.2,3471.0,0.28839]
[1735870402448,40.8,3471.2,3470.9,9.00362215]
[1735870402752,0.2884,3471.0,3470.9,9.00362215]
[1735870403146,0.2884,3471.0,3470.9,12.84481913]
[1735870403360,41.0884,3471.0,3470.9,12.84481913]
[1735870405046,41.0884,3471.0,3470.9,6.09746854]
[1735870405442,41.0884,3471.0,3470.9,6.73350416]
[1735870405650,41.0884,3471.0,3470.9,6.44509563]
[1735870405851,41.0884,3471.0,3470.9,6.09746854]
[1735870406047,41.0884,3471.0,3470.9,15.10109069]
[1735870407152,41.0884,3471.0,3470.9,27.49939169]
[1735870407858,41.0884,3471.0,3470.9,27.78780169]
[1735870408154,41.0884,3471.0,3470.9,18.78417954]
[1735870408343,41.0884,3471.0,3470.9,19.13179652]
[1735870408546,41.0884,3471.0,3470.9,19.13179873]
[1735870408749,40.8,3471.0,3470.9,18.78417954]
[1735870408952,0.99709146,3471.1,3470.9,18.78417954]
[1735870409151,0.2884,3471.0,3470.9,18.78417954]
[1735870409349,0.2884,3471.0,3470.9,19.13178851]
[1735870409750,42.08548146,3471.1,3470.9,18.84337851]
[1735870409946,42.08548146,3471.1,3471.0,0.2884]
[1735870410149,41.79709146,3471.1,3471.0,18.49576954]
[1735870410359,42.08548146,3471.1,3471.0,18.49576954]
[1735870410658,42.08548146,3471.1,3471.0,18.78416954]
[1735870411656,40.8,3471.1,3471.0,18.78416954]
[1735870411957,40.8,3471.1,3471.0,19.13177168]
[1735870413557,40.8,3471.1,3471.0,30.32243847]
[1735870413759,0.28839,3471.2,3471.0,30.03403847]
[1735870413954,0.28839,3471.2,3471.1,0.28839]
[1735870414257,0.28839,3471.1,3471.0,29.97482633]
[1735870414452,0.28839,3471.1,3471.0,11.47905679]
[1735870414655,41.08839,3471.2,3471.1,0.28839]
[1735870415158,40.8,3471.2,3471.0,11.19066679]
[1735870415357,1.28548146,3471.1,3471.0,11.47906679]
[1735870415758,1.28548146,3471.1,3471.0,11.19066679]
[1735870416354,1.28548146,3471.1,3471.0,18.60616869]
[1735870418558,1.28548146,3471.1,3471.0,27.90214488]
[1735870418559,0.28839,3471.1,3471.0,27.90214488]
[1735870419865,0.28839,3471.1,3471.0,18.89456869]
[1735870420362,40.8,3471.2,3471.0,18.60616869]
[1735870420661,41.08839,3471.2,3471.1,0.28839]
[1735870421260,41.08839,3471.2,3471.1,18.89455869]
[1735870422064,41.08839,3471.2,3471.1,18.60616869]
[1735870423072,41.08839,3471.2,3471.1,27.61171156]
[1735870423366,41.08839,3471.2,3471.1,27.90010156]
[1735870424067,41.08839,3471.2,3471.1,18.89455869]
[1735870426966,40.8,3471.2,3471.1,18.89455869]
[1735870428974,40.8,3471.2,3471.1,27.89842567]
[1735870430075,40.8,3471.2,3471.1,18.89455869]
[1735870431973,41.08838,3471.2,3471.1,18.89455869]
[1735870432576,41.08838,3471.2,3471.1,27.8980921]
[1735870433173,41.08838,3471.2,3471.1,27.6097021]
[1735870433377,41.08838,3471.2,3471.1,27.8980921]
[1735870435577,41.08838,3471.2,3471.1,18.89455869]
[1735870436378,0.28835,3471.6,3471.1,18.95362471]
[1735870436577,3.2078,3472.1,3471.4,0.99709146]
[1735870436770,1.28542146,3471.9,3471.7,0.28834]
[1735870436975,0.28833,3471.8,3471.7,0.28834]
[1735870437677,1.28542146,3471.9,3471.7,6.49039623]
[1735870438079,0.99709146,3471.9,3471.7,6.49039623]
[1735870438279,0.28833,3471.8,3471.7,6.49039623]
[1735870438480,1.28541146,3471.9,3471.8,0.28833]
[1735870438682,0.99709146,3471.9,3471.7,6.20205623]
[1735870438876,41.79709146,3472.0,3471.7,15.20396439]
[1735870439082,41.79709146,3472.0,3471.9,0.28832]
[1735870439781,42.08541146,3472.0,3471.9,0.28832]
[1735870440374,41.79709146,3472.0,3471.9,13.23278188]
[1735870440984,41.79709146,3472.0,3471.9,12.94446188]
[1735870441180,42.08541146,3472.0,3471.9,12.94446188]
[1735870441377,42.08541146,3472.0,3471.9,6.20205623]
[1735870441882,42.08541146,3472.0,3471.9,6.49037623]
[1735870442486,41.79709146,3472.0,3471.9,6.49037623]
[1735870443288,40.8,3472.0,3471.9,6.49037623]
[1735870444785,40.8,3472.0,3471.9,10.98049467]
[1735870445886,40.8,3472.0,3471.9,4.49011844]
[1735870446186,41.08832,3472.0,3471.9,4.49011844]
[1735870446990,41.08832,3472.0,3471.8,4.77844844]
[1735870447380,0.28832,3471.9,3471.8,4.77844844]
[1735870448787,40.8,3472.0,3471.9,0.28832]
[1735870448788,41.08832,3472.0,3471.9,0.28832]
[1735870449389,41.08832,3472.0,3471.8,4.77844844]
[1735870449786,40.8,3472.0,3471.8,4.77844844]
[1735870449990,40.8,3472.0,3471.8,4.49011844]
[1735870450292,41.08832,3472.0,3471.8,4.49011844]
[1735870450590,41.08832,3472.0,3471.9,0.28832]
[1735870450790,41.08832,3472.0,3471.9,4.77843844]
[1735870450990,0.28832,3472.0,3471.9,4.77843844]
[1735870451392,4.49320146,3472.1,3472.0,0.28832]
[1735870451787,0.28832,3472.0,3471.9,4.77843844]
[1735870451987,41.08832,3472.0,3471.9,4.77843844]
[1735870452589,40.8,3472.0,3471.9,4.77843844]
[1735870453689,40.8,3472.0,3471.9,0.28832]
[1735870454091,41.08832,3472.0,3471.9,0.28832]
[1735870455093,40.8,3472.0,3471.9,0.28832]
[1735870455697,41.08832,3472.0,3471.9,0.28832]
[1735870455994,40.8,3472.0,3471.9,0.28832]
[1735870456895,40.8,3472.0,3471.9,4.77843844]
[1735870457790,41.08832,3472.0,3471.9,4.77843844]
[1735870457998,40.8,3472.0,3471.9,4.77843844]
[1735870458295,41.08832,3472.0,3471.9,4.77843844]
[1735870458690,40.8,3472.0,3471.9,4.77843844]
[1735870459097,40.8,3472.0,3471.9,10.89317703]
[1735870460292,40.8,3472.0,3471.9,6.40305859]
[1735870462597,41.08832,3472.0,3471.9,6.40305859]
[1735870462797,40.8,3472.0,3471.9,6.40305859]
[1735870464601,40.8,3472.0,3471.9,4.7763361]
[1735870466402,40.8,3472.0,3471.9,5.12368669]
[1735870466804,40.8,3472.0,3471.9,6.75086153]
[1735870468706,40.8,3472.0,3471.9,6.75092282]
[1735870470214,40.8,3472.0,3471.9,13.49112208]
[1735870471608,40.8,3472.0,3471.9,13.49112888]
[1735870471808,40.8,3472.0,3471.9,13.49116036]
[1735870472311,40.8,3472.0,3471.9,13.49116047]
[1735870474017,40.8,3472.0,3471.9,13.49121422]
[1735870476316,40.8,3472.0,3471.9,6.75101496]
[1735870477723,40.8,3472.0,3471.9,6.40351094]
[1735870477914,40.8,3472.0,3471.9,6.75124714]
[1735870478816,0.99709146,3472.1,3471.9,6.11519094]
[1735870479121,0.28832,3472.0,3471.9,6.11519094]
[1735870479319,41.08832,3472.0,3471.9,6.11519094]
[1735870479522,41.08832,3472.0,3471.9,15.1170991]
[1735870479917,50.29321146,3472.0,3471.9,15.1170991]
[1735870480816,0.28835,3471.6,3471.5,4.50339681]
[1735870481020,4.49324146,3471.6,3471.5,4.50339681]
[1735870481422,45.29324146,3471.6,3471.5,4.50339681]
[1735870482223,0.28837,3471.3,3471.2,4.50339681]
[1735870485525,0.28838,3471.2,3471.1,4.50339681]
[1735870486620,1.28547146,3471.2,3471.1,4.50339681]
[1735870488219,44.0078,3471.6,3471.1,5.50048827]
[1735870488419,0.28836,3471.5,3471.3,0.28837]
[1735870488625,1.28545146,3471.5,3471.3,0.28837]
[1735870489223,40.8,3471.9,3471.3,0.99709146]
[1735870489530,1.28543146,3471.7,3471.5,0.28835]
[1735870490936,1.28543146,3471.7,3471.5,4.79174681]
[1735870493524,0.28835,3471.6,3471.5,4.79174681]
[1735870493731,1.28544146,3471.7,3471.5,4.79174681]
[1735870495631,1.28544146,3471.7,3471.5,4.50339681]
[1735870495838,1.28544146,3471.7,3471.5,4.79174681]
[1735870496834,0.28835,3471.6,3471.5,4.50339681]
[1735870501933,41.08835,3471.6,3471.5,4.50339681]
[1735870502838,0.7209,3471.5,3470.8,4.50339681]
[1735870503038,0.28841,3470.9,3470.8,4.50339681]
[1735870503739,0.99709146,3471.0,3470.7,4.50339681]
[1735870503740,0.28842,3470.8,3470.7,4.50339681]
[1735870504938,0.28842,3470.8,3470.7,6.12959677]
[1735870505439,1.28551146,3470.8,3470.7,6.12959677]
[1735870505946,4.49331146,3470.8,3470.7,6.12959677]
[1735870506243,0.28843,3470.6,3470.5,6.75509522]
[1735870506442,1.28552146,3470.6,3470.5,6.75509522]
[1735870507341,1.28552146,3470.6,3470.3,9.00190816]
[1735870507342,0.28846,3470.3,3470.2,4.49833217]
[1735870508245,0.28847,3470.1,3470.0,4.49833217]
[1735870509245,0.99709146,3470.4,3470.0,4.20489146]
[1735870509437,0.99709146,3470.6,3470.2,0.99709146]
[1735870509639,1.28553146,3470.6,3470.5,0.28844]
[1735870509839,1.28553146,3470.6,3470.4,0.28844]
[1735870510035,0.99709146,3470.6,3470.5,0.28844]
[1735870510241,4.20489146,3470.8,3470.4,0.99709146]
[1735870510641,0.28843,3470.7,3470.5,0.28844]
[1735870510845,1.28552146,3470.6,3470.4,0.28845]
[1735870511339,0.99709146,3470.6,3470.5,0.28844]
[1735870511849,1.28552146,3470.7,3470.5,0.28844]
[1735870512050,0.99709146,3470.7,3470.6,0.28843]
[1735870512543,3.2078,3470.8,3470.7,0.28842]
[1735870512943,1.28548146,3471.1,3470.9,0.2884]
[1735870513143,0.28839,3471.1,3470.9,0.2884]
[1735870514542,0.28838,3471.3,3471.1,0.28839]
[1735870514746,41.79709146,3471.4,3470.8,0.99709146]
[1735870514948,41.79709146,3471.4,3471.2,0.28838]
[1735870514949,42.08546146,3471.4,3471.2,0.28838]
[1735870515543,0.28837,3471.3,3471.1,0.28839]
[1735870515744,0.99709146,3471.2,3471.1,0.28839]
[1735870516050,1.28548146,3471.2,3471.0,0.28839]
[1735870516461,0.99709146,3471.2,3470.9,3.2078]
[1735870516645,0.99709146,3471.0,3470.9,7.99453217]
[1735870517047,1.28549146,3471.0,3470.9,7.70613217]
[1735870517543,1.28549146,3471.0,3470.9,4.49833217]
[1735870517951,0.28841,3470.9,3470.8,4.49833217]
[1735870519047,0.28838,3471.2,3470.7,0.28842]
[1735870519253,0.28838,3471.2,3470.6,4.49833217]
[1735870519254,2.26970819,3471.0,3470.6,4.49833217]
[1735870519554,2.55812819,3470.7,3470.6,4.49833217]
[1735870519759,43.35812819,3470.7,3470.6,4.49833217]
[1735870520151,0.28847,3470.2,3470.1,4.49833217]
[1735870520950,0.28844,3470.5,3470.3,0.28845]
[1735870521151,43.06970819,3470.7,3470.1,4.49833217]
[1735870521453,0.28845,3470.4,3470.2,0.28846]
[1735870521949,41.08843,3470.7,3470.6,0.28843]
[1735870522254,0.28843,3470.7,3470.5,0.28843]
[1735870522652,41.08843,3470.7,3470.5,0.28843]
[1735870523947,40.8,3470.7,3470.6,0.28843]
[1735870524365,41.08843,3470.7,3470.5,0.28844]
[1735870524556,40.8,3470.7,3470.6,0.28843]
[1735870527256,3.2078,3471.2,3470.5,7.70613217]
[1735870527455,0.28839,3471.1,3470.9,0.2884]
[1735870527757,40.8,3471.0,3470.9,0.2884]
[1735870529458,40.8,3471.0,3470.9,3.4962]
[1735870529653,3.2078,3471.8,3471.4,0.28836]
[1735870529853,0.28835,3471.6,3471.4,0.28836]
[1735870530053,0.28836,3471.5,3471.4,0.28836]
[1735870530459,0.28835,3471.6,3471.4,0.28836]
[1735870530656,40.8,3471.7,3471.4,0.28836]
[1735870530855,0.28836,3471.5,3471.4,4.49833217]
[1735870531060,2.55806819,3471.5,3471.4,4.49833217]
[1735870531254,0.28836,3471.5,3471.4,4.49833217]
[1735870531765,0.28835,3471.6,3471.4,0.28836]
[1735870532662,43.35804819,3471.7,3471.5,0.28835]
[1735870532963,0.28835,3471.6,3471.5,0.28835]
[1735870533157,43.06970819,3471.7,3471.2,7.04347522]
[1735870533158,0.28837,3471.4,3471.2,7.04347522]
[1735870533559,0.28837,3471.4,3471.2,6.75509522]
[1735870533767,43.06970819,3471.7,3471.3,0.28837]
[1735870533965,0.28836,3471.5,3471.3,0.28837]
[1735870534258,0.28837,3471.3,3471.2,7.04347522]
[1735870534563,43.06970819,3471.7,3471.3,4.78268668]
[1735870534764,0.28836,3471.5,3471.3,4.78268668]
[1735870535358,0.28835,3471.6,3471.4,0.28836]
[1735870535560,0.28835,3471.6,3471.4,0.28837]
[1735870535858,0.28835,3471.6,3471.3,4.49431668]
[1735870536065,0.28835,3471.6,3471.5,0.28836]
[1735870537469,40.8,3471.7,3471.3,4.49431668]
[1735870537674,40.8,3471.7,3471.6,0.28835]
[1735870539370,3.49612,3471.9,3471.5,4.49431668]
[1735870539563,3.49612,3471.9,3471.8,0.28833]
[1735870539962,41.08832,3471.9,3471.8,0.28833]
[1735870540162,40.8,3471.9,3471.8,0.28833]
[1735870540961,41.08833,3471.9,3471.7,4.78265668]
[1735870541768,40.8,3471.9,3471.8,0.28833]
[1735870545375,3.2078,3472.3,3471.7,6.76402487]
[1735870545571,3.2078,3472.3,3471.7,5.61631668]
[1735870545774,3.2078,3472.3,3471.8,0.28833]
[1735870545969,3.2078,3472.3,3471.7,5.61631668]
[1735870546168,3.4961,3472.3,3471.7,5.61631668]
[1735870546375,3.4961,3472.3,3472.0,0.28831]
[1735870546575,0.2883,3472.3,3472.0,0.28831]
[1735870547275,0.2883,3472.3,3472.1,0.28831]
[1735870547477,42.00023113,3472.4,3472.1,0.28831]
[1735870548483,42.00023113,3472.4,3472.2,0.2883]
[1735870548788,42.00023113,3472.4,3472.1,0.2883]
[1735870548981,42.00023113,3472.4,3471.8,4.49431668]
[1735870548982,42.00022113,3472.4,3471.8,4.49431668]
[1735870549185,41.71194113,3472.4,3471.8,4.49431668]
[1735870549384,42.00023113,3472.4,3471.8,4.49431668]
[1735870549587,42.00023113,3472.4,3472.1,0.2883]
[1735870550185,42.00023113,3472.4,3472.2,0.2883]
[1735870550386,41.71194113,3472.4,3471.9,4.49431668]
[1735870550692,42.00023113,3472.4,3472.1,0.2883]
[1735870550989,41.71194113,3472.4,3472.2,0.28829]
[1735870551489,42.00022113,3472.4,3472.2,0.28829]
[1735870551693,41.71194113,3472.4,3472.2,0.28829]
[1735870552589,41.71194113,3472.4,3471.8,4.49431668]
[1735870552590,0.91194113,3472.4,3471.9,3.2078]
[1735870552987,0.91194113,3472.4,3472.2,0.28829]
[1735870553690,0.91194113,3472.4,3471.9,7.70211668]
[1735870553891,0.91194113,3472.4,3472.2,0.2883]
[1735870554385,0.91194113,3472.4,3471.9,7.70211668]
[1735870555095,0.91194113,3472.4,3472.2,0.28829]
[1735870555888,3.18164932,3472.4,3471.9,7.70211668]
[1735870556097,0.28831,3472.2,3471.9,7.99043668]
[1735870556981,0.28831,3472.2,3471.9,3.49612]
[1735870557184,0.28829,3472.3,3472.0,0.28832]
[1735870557385,3.46993932,3472.4,3472.1,0.2883]
[1735870557899,3.18164932,3472.4,3472.2,0.2883]
[1735870559392,3.18164932,3472.4,3471.9,3.2078]
[1735870559688,3.18164932,3472.4,3472.2,0.2883]
[1735870560599,3.18164932,3472.4,3472.3,0.28829]
[1735870560897,0.91194113,3472.4,3472.3,0.28829]
[1735870563603,0.91194113,3472.4,3471.9,3.2078]
[1735870563894,0.91194113,3472.4,3472.3,0.28829]
[1735870565099,1.20023113,3472.4,3472.2,0.28829]
[1735870565394,0.91194113,3472.4,3472.3,0.28829]
[1735870565897,41.71194113,3472.4,3472.3,0.28829]
[1735870568105,0.91194113,3472.4,3472.3,0.28829]
[1735870568406,0.91194113,3472.4,3472.3,0.63563779]
[1735870569303,0.91194113,3472.4,3472.3,0.28829]
[1735870569507,0.91194113,3472.4,3472.3,0.63564705]
[1735870569797,0.91194113,3472.4,3472.3,0.28829]
[1735870570001,0.91194113,3472.4,3472.2,4.78260668]
[1735870570400,2.55799819,3472.3,3472.2,4.49431668]
[1735870570700,0.91194113,3472.4,3472.2,4.49431668]
[1735870570904,0.91194113,3472.4,3472.3,0.28829]
[1735870571703,41.71194113,3472.4,3472.3,0.28829]
[1735870572205,2.55797819,3472.6,3472.3,0.28829]
[1735870572604,0.28828,3472.5,3472.3,0.28829]
[1735870573409,3.2078,3472.7,3472.2,4.49431668]
[1735870573593,0.28827,3472.6,3472.2,4.49431668]
[1735870573800,3.2078,3473.1,3472.2,4.49431668]
[1735870574103,0.28826,3472.7,3472.5,0.28827]
[1735870574304,0.28826,3472.7,3472.4,0.28828]
[1735870574506,5.70697227,3473.5,3472.7,0.28826]
[1735870574702,0.28826,3472.7,3472.5,0.28827]
[1735870574902,0.28826,3472.7,3472.6,0.34740447]
[1735870575106,0.28826,3472.7,3472.6,4.84172115]
[1735870575410,40.8,3473.1,3472.6,4.84170378]
[1735870575604,0.28825,3472.8,3472.6,4.49431668]
[1735870575804,44.0078,3473.1,3472.6,4.49431668]
[1735870576409,0.28826,3472.7,3472.5,9.29017816]
[1735870576607,0.28826,3472.7,3472.6,0.34727476]
[1735870576802,0.28826,3472.7,3472.5,9.00190816]
[1735870577008,0.28827,3472.6,3472.5,9.00190816]
[1735870577209,2.55797819,3472.6,3472.5,9.00190816]
[1735870577402,2.55797819,3472.6,3472.4,9.00190816]
[1735870577899,40.8,3472.5,3472.4,9.00190816]
[1735870578098,40.8,3472.5,3472.4,9.29018816]
[1735870578299,40.8,3472.5,3472.4,9.00190816]
[1735870578511,40.8,3472.5,3472.4,9.29018816]
[1735870578705,40.8,3472.5,3472.4,0.28828]
[1735870579712,40.8,3472.5,3472.4,4.78259714]
[1735870580908,40.8,3472.5,3472.4,4.49431714]
[1735870581306,40.8,3472.5,3472.4,4.78259714]
[1735870581811,40.8,3472.5,3472.4,4.49431714]
[1735870582009,41.08827,3472.5,3472.4,6.06916716]
[1735870582309,0.28827,3472.5,3472.4,6.35744716]
[1735870582705,0.28827,3472.6,3472.4,6.35744716]
[1735870583507,3.2078,3472.7,3472.4,6.35744716]
[1735870583705,3.2078,3472.7,3472.4,6.06916716]
[1735870583909,0.28827,3472.5,3472.4,6.06916716]
[1735870584209,0.28827,3472.5,3472.4,6.74147571]
[1735870585412,0.28827,3472.5,3472.3,7.02975571]
[1735870586311,0.28829,3472.3,3472.2,9.00190816]
[1735870586519,5.76579819,3472.3,3472.2,9.00190816]
[1735870587406,5.76579819,3472.3,3472.2,4.50196512]
[1735870589611,5.47750819,3472.3,3472.2,4.50196512]
[1735870589807,41.52064,3472.8,3472.2,4.50196512]
[1735870589808,0.28828,3472.5,3472.3,0.28828]
[1735870590209,0.28828,3472.5,3472.2,4.50196512]
[1735870590409,0.28828,3472.5,3472.3,0.28829]
[1735870590614,0.28828,3472.5,3472.2,4.50196512]
[1735870590815,0.28828,3472.5,3472.4,0.28828]
[1735870591116,0.28828,3472.5,3472.4,12.828065]
[1735870592013,0.28828,3472.5,3472.4,15.07702548]
[1735870593218,2.26970819,3472.6,3472.3,4.50156532]
[1735870593418,0.28828,3472.4,3472.3,4.78985532]
[1735870594120,0.28828,3472.4,3472.3,4.50156532]
[1735870594419,0.28828,3472.4,3472.3,10.57552351]
[1735870595717,0.28828,3472.4,3472.3,6.07395819]
[1735870596421,0.28829,3472.3,3472.2,7.04064798]
[1735870596916,2.26970819,3472.6,3472.3,0.28829]
[1735870596917,0.28829,3472.4,3472.3,0.28829]
[1735870598022,0.28829,3472.3,3472.2,7.04064798]
[1735870599117,0.28829,3472.3,3472.2,13.11411731]
[1735870601217,0.28829,3472.3,3472.2,27.50410224]
[1735870602315,2.55799819,3472.3,3472.2,27.21580224]
[1735870603428,0.28829,3472.3,3472.2,6.07346933]
[1735870603615,0.28829,3472.3,3472.2,6.36176933]
[1735870604525,0.28829,3472.4,3472.3,0.28829]
[1735870605121,0.28829,3472.4,3472.3,6.36175933]
[1735870606327,0.28828,3472.5,3472.4,0.28828]
[1735870606626,40.8,3472.8,3472.3,15.07537749]
[1735870607030,0.28828,3472.5,3472.4,0.28828]
[1735870607826,0.28828,3472.5,3472.4,6.36174933]
[1735870608621,0.28828,3472.5,3472.4,6.07346933]
[1735870611327,0.28828,3472.5,3472.4,6.36174933]
[1735870611626,0.28828,3472.5,3472.4,6.07346933]
[1735870612833,0.28828,3472.5,3472.4,10.56784336]
[1735870613926,0.28828,3472.5,3472.4,6.07346933]
[1735870616026,0.28828,3472.5,3472.4,12.819047]
[1735870621527,2.26970819,3472.6,3472.4,4.49432095]
[1735870621727,0.28827,3472.5,3472.4,4.49432095]
[1735870622735,0.28828,3472.4,3472.3,6.74557767]
[1735870623539,0.28829,3472.3,3472.2,4.49550821]
[1735870624330,1.28523126,3472.3,3472.2,4.49550821]
[1735870625243,0.28829,3472.3,3472.2,4.78380821]
[1735870625443,1.28523126,3472.4,3472.2,4.78380821]
[1735870625744,1.28523126,3472.4,3472.2,6.35385719]
[1735870625944,1.28523126,3472.4,3472.3,0.28829]
[1735870626145,0.99694126,3472.4,3472.2,6.06555719]
[1735870626339,1.28523126,3472.4,3472.3,0.28829]
[1735870626543,1.28523126,3472.4,3472.3,4.78230531]
[1735870627944,1.28523126,3472.4,3472.3,6.35233222]
[1735870628746,0.99694126,3472.6,3472.3,6.06404222]
[1735870628946,0.28828,3472.5,3472.4,0.28828]
[1735870629141,0.28827,3472.6,3472.4,3.49608]
[1735870629340,40.8,3472.8,3472.4,3.2078]
[1735870629644,0.28827,3472.5,3472.4,3.2078]
[1735870630047,0.28827,3472.5,3472.4,9.95337767]
[1735870631040,1.28521126,3472.5,3472.4,9.27117359]
[1735870632348,1.28521126,3472.5,3472.4,6.06337359]
[1735870633351,1.28521126,3472.5,3472.4,12.80283617]
[1735870634650,1.28521126,3472.5,3472.4,6.06337359]
[1735870636845,1.28521126,3472.5,3472.4,15.06528175]
[1735870642155,0.99694126,3472.5,3472.4,15.06528175]
[1735870642758,1.28521126,3472.5,3472.4,15.06528175]
[1735870644254,40.8,3472.8,3472.4,15.06528175]
[1735870644554,1.28521126,3472.5,3472.4,15.06528175]
[1735870644947,1.28521126,3472.5,3472.3,6.73914176]
[1735870645157,1.28521126,3472.5,3472.3,7.02743176]
[1735870646051,1.28521126,3472.5,3472.3,6.73914176]
[1735870646252,1.28521126,3472.5,3472.4,0.28828]
[1735870646457,1.28521126,3472.5,3472.4,4.7810493]
[1735870646950,0.28827,3472.5,3472.4,4.7810493]
[1735870647152,40.8,3472.8,3472.4,4.4927693]
[1735870647454,5.53060205,3473.3,3473.2,0.28822]
[1735870647659,4.15191466,3473.7,3473.6,0.28818]
[1735870647855,8.0044468,3474.2,3474.1,0.28814]
[1735870648056,7.8183468,3474.2,3474.1,5.61388126]
[1735870648260,7.2372168,3474.2,3474.1,10.61388126]
[1735870648460,6.5511468,3474.2,3474.1,10.61388126]
[1735870648647,6.1103468,3474.2,3474.1,10.61388126]
[1735870648851,6.1103468,3474.2,3474.1,4.61694]
[1735870649052,6.1103468,3474.2,3474.1,10.64088126]
[1735870649255,41.79694126,3475.1,3474.1,16.38372521]
[1735870649461,2.8792,3475.0,3474.7,0.99694126]
[1735870649756,2.8792,3475.0,3474.9,1.28502126]
[1735870650159,40.8,3475.1,3474.9,0.99694126]
[1735870650349,43.6792,3475.1,3475.0,0.28807]
[1735870650550,43.6792,3475.1,3475.0,3.49587]
[1735870651260,3.2078,3476.4,3475.6,0.28802]
[1735870651557,3.49576,3476.4,3475.9,2.26390849]
[1735870651757,3.49576,3476.4,3475.7,1.148]
[1735870651758,40.8,3476.3,3475.7,1.436]
[1735870651958,40.8,3476.3,3475.8,0.288]
[1735870652259,3.2078,3476.9,3476.4,0.28795]
[1735870652457,0.998,3477.0,3476.6,0.28793]
[1735870652656,40.8,3477.0,3476.8,5.75961849]
[1735870652851,0.998,3477.2,3476.8,10.47170849]
[1735870653061,0.998,3477.2,3476.9,1.148]
[1735870653359,0.998,3477.2,3477.1,2.55179849]
[1735870653757,0.998,3477.2,3477.1,7.55179849]
[1735870654062,1.30226018,3477.2,3477.1,6.66394062]
[1735870654359,2.26390849,3477.7,3477.1,6.66394062]
[1735870654559,1.30226018,3477.4,3477.1,0.28789]
[1735870655150,1.30226018,3477.4,3476.8,3.2078]
[1735870655460,1.30226018,3477.4,3476.8,5.47170849]
[1735870655662,1.30226018,3476.9,3476.8,3.2078]
[1735870655960,1.59017018,3476.9,3476.8,3.2078]
[1735870656160,1.30226018,3476.9,3476.8,3.2078]
[1735870658567,1.59017018,3476.9,3476.8,3.2078]
[1735870658975,1.30226018,3476.9,3476.3,3.2078]
[1735870659170,1.30226018,3476.9,3475.7,5.57748787]
[1735870659171,1.30226018,3476.4,3475.8,3.2078]
[1735870659472,1.30226018,3476.0,3475.8,3.4958]
[1735870660165,40.8,3475.9,3475.8,3.4958]
[1735870660365,0.28795,3476.5,3475.8,3.4958]
[1735870660564,1.30226018,3476.2,3475.8,3.4958]
[1735870660776,1.30226018,3476.2,3475.8,3.2078]
[1735870660971,40.8,3476.1,3475.8,3.2078]
[1735870661269,42.10226018,3476.1,3475.8,3.49579]
[1735870661574,1.30226018,3476.1,3475.8,3.49579]
[1735870662268,42.10226018,3476.1,3475.9,0.28799]
[1735870662465,1.30226018,3476.1,3475.8,3.4958]
[1735870662665,1.30226018,3476.1,3475.8,3.2078]
[1735870662969,1.30226018,3476.1,3475.8,4.3548]
[1735870663668,1.30226018,3476.1,3475.8,4.6428]
[1735870664065,1.30226018,3475.9,3475.8,3.2078]
[1735870664366,1.59025018,3475.9,3475.8,3.2078]
[1735870665472,1.30226018,3475.9,3475.8,3.2078]
[1735870666063,40.8,3476.5,3475.8,3.2078]